fUST/lending_fUST_20240226
["ID","MTS","AMOUNT","RATE_DAILY","PERIOD"]
[315193787,1708920645038,-500.0,0.00019726,2]
[315193788,1708920645047,-500.0,0.00019726,2]
[315193789,1708920645056,-501.71675449,0.00019726,2]
[315193790,1708920645065,-500.0,0.00019726,2]
[315193791,1708920645075,-500.0,0.00019726,2]
[315193792,1708920645084,-549.7,0.00019726,2]
[315193793,1708920645093,-500.0,0.00019726,2]
[315193794,1708920645102,-500.85128667,0.00019726,2]
[315193795,1708920645112,-500.0,0.00019726,2]
[315193796,1708920645121,-500.0,0.00019726,2]
[315193797,1708920645130,-773.55,0.00019726,2]
[315193798,1708920645139,-500.0,0.00019726,2]
[315193799,1708920645148,-500.0,0.00019726,2]
[315193800,1708920645157,-500.0,0.00019726,2]
[315193801,1708920645166,-500.0,0.00019726,2]
[315193802,1708920645176,-500.0,0.00019726,2]
[315193803,1708920645185,-1524.79,0.00019726,2]
[315193804,1708920645194,-1590.92,0.00019726,2]
[315193805,1708920645204,-500.0,0.00019726,2]
[315193806,1708920645213,-500.0,0.00019726,2]
[315193807,1708920645222,-11036.19,0.00019726,2]
[315193808,1708920645232,-500.0,0.00019726,2]
[315193809,1708920645241,-500.0,0.00019726,2]
[315193810,1708920645251,-500.0,0.00019726,2]
[315193811,1708920645260,-965.48,0.00019726,2]
[315193812,1708920645268,-2991.11,0.00019726,2]
[315193813,1708920645277,-4175.75,0.00019726,2]
[315193814,1708920645286,-826.02,0.00019726,2]
[315193815,1708920645296,-500.0,0.00019726,2]
[315193816,1708920645305,-499.53437694,0.00019726,2]
[315193817,1708920645314,-502.09355324,0.00019726,2]
[315193818,1708920645323,-500.0,0.00019726,2]
[315193819,1708920645332,-2012.34,0.00019726,2]
[315193820,1708920645342,-487.01483259,0.00019726,2]
[315193821,1708920645351,-500.0,0.00019726,2]
[315193822,1708920645359,-249.10033961,0.00019726,2]
[315193823,1708920645368,-500.0,0.00019726,2]
[315193824,1708920645460,-1000.0,0.00019726,2]
[315193825,1708920645469,-500.0,0.00019726,2]
[315193826,1708920645478,-500.0,0.00019726,2]
[315193827,1708920645488,-500.0,0.00019726,2]
[315193828,1708920645497,-500.0,0.00019726,2]
[315193829,1708920645506,-2709.02,0.00019726,2]
[315193830,1708920645515,-2190.26,0.00019726,2]
[315193831,1708920645523,-2052.23,0.00019726,2]
[315193832,1708920645532,-500.81546176,0.00019726,2]
[315193833,1708920645541,-500.0,0.00019726,2]
[315193834,1708920645550,-442.24473459,0.00019726,2]
[315193835,1708920645559,-500.0,0.00019726,2]
[315193836,1708920645568,-500.0,0.00019726,2]
[315193837,1708920645582,-500.0,0.00019726,2]
[315193838,1708920645590,-500.0,0.00019726,2]
[315193839,1708920645600,-500.0,0.00019726,2]
[315193840,1708920645609,-500.0,0.00019726,2]
[315193841,1708920645618,-500.0,0.00019726,2]
[315193842,1708920645627,-1005.8616059,0.00019726,2]
[315193843,1708920645636,-500.0,0.00019726,2]
[315193844,1708920645646,-500.0,0.00019726,2]
[315193845,1708920645655,-500.0,0.00019726,2]
[315193846,1708920645665,-500.0,0.00019726,2]
[315193847,1708920645675,-10278.27939643,0.00019726,2]
[315193848,1708920645701,-12505.37060357,0.00019726,2]
[315193849,1708920645711,-500.0,0.00019726,2]
[315193850,1708920645720,-151.0,0.00019726,2]
[315193851,1708920645729,-151.0,0.00019726,2]
[315193852,1708920645738,-500.0,0.00019726,2]
[315193853,1708920645748,-1778.63,0.00019726,2]
[315193854,1708920645757,-643.67,0.00019726,2]
[315193855,1708920645766,-658.66450243,0.00019726,2]
[315193856,1708920645778,-1662.25549757,0.00019726,2]
[315193857,1708920645787,-616.05400382,0.00019726,2]
[315193858,1708920645796,-500.0,0.00019726,2]
[315193859,1708920645805,-474.97645792,0.00019726,2]
[315193863,1708920646305,-391.34,0.00019168,3]
[315193864,1708920646314,-788.36,0.00019178,2]
[315193865,1708920646323,-500.0,0.00019178,2]
[315193866,1708920646333,-27990.45183521,0.00019442,3]
[315193867,1708920646360,-342.36884967,0.00019442,3]
[315193889,1708921590132,-154.90705577,0.00018331,2]
[315193890,1708921590151,-653.04920302,0.00018332,2]
[315193891,1708921590170,-1600.10761346,0.00018333,2]
[315193892,1708921590190,-264.78655,0.00018354,2]
[315193893,1708921590209,-267.46000732,0.000189,2]
[315193894,1708921590227,-744.78612632,0.00019069,2]
[315193895,1708921590246,-326.12,0.00019168,3]
[315193896,1708921590266,-163.06,0.00019168,3]
[315193897,1708921590285,-489.2,0.00019168,3]
[315193898,1708921590303,-501.09881645,0.00019178,2]
[315193899,1708921590321,-501.27258164,0.00019178,2]
[315193900,1708921590340,-500.0,0.00019178,2]
[315193901,1708921590359,-500.74123797,0.00019178,2]
[315193902,1708921590378,-501.7060502,0.00019178,2]
[315193903,1708921590397,-181.15034228,0.00019178,2]
[315193904,1708921590415,-500.0,0.00019178,2]
[315193905,1708921590434,-500.0,0.00019178,2]
[315193906,1708921590453,-500.0,0.00019178,2]
[315193907,1708921590472,-190.6103914,0.00019178,2]
[315193950,1708921832490,-1007.36009066,0.00019164,2]
[315194029,1708921839710,-592.7475228,0.00019164,2]
[315194030,1708921839720,-653.04920302,0.00019165,2]
[315194031,1708921839728,-163.06,0.00019168,3]
[315194032,1708921839737,-489.18,0.00019168,3]
[315194033,1708921839746,-155.47466532,0.00019177,2]
[315194034,1708921839755,-500.0,0.00019178,2]
[315194035,1708921839764,-500.0,0.00019178,2]
[315194036,1708921839773,-500.0,0.00019178,2]
[315194037,1708921839783,-440.90678372,0.00019178,2]
[315194038,1708921839792,-503.92602803,0.00019178,2]
[315194039,1708921839800,-500.0,0.00019178,2]
[315194040,1708921839918,-500.0,0.00019178,2]
[315194041,1708921839936,-500.0,0.00019178,2]
[315194042,1708921839950,-573.18,0.00019178,2]
[315194043,1708921839962,-501.98549869,0.00019178,2]
[315194044,1708921839971,-500.0,0.00019178,2]
[315194045,1708921839982,-500.0,0.00019178,2]
[315194046,1708921839992,-500.0,0.00019178,2]
[315194047,1708921840002,-500.0,0.00019178,2]
[315194048,1708921840011,-502.06092799,0.00019178,2]
[315194049,1708921840021,-500.0,0.00019178,2]
[315194050,1708921840032,-500.0,0.00019178,2]
[315194051,1708921840042,-501.23396073,0.00019178,2]
[315194052,1708921840051,-503.24638074,0.00019178,2]
[315194053,1708921840061,-209.81817441,0.00019178,2]
[315194054,1708921840071,-501.16377799,0.00019178,2]
[315194055,1708921840081,-500.0,0.00019178,2]
[315194056,1708921840091,-501.76089687,0.00019178,2]
[315194057,1708921840101,-500.0,0.00019178,2]
[315194058,1708921840111,-500.0,0.00019178,2]
[315194059,1708921840121,-501.71675449,0.00019178,2]
[315194060,1708921840131,-501.45514214,0.00019178,2]
[315194061,1708921840141,-151.0,0.00019178,2]
[315194062,1708921840151,-500.0,0.00019178,2]
[315194063,1708921840160,-500.0,0.00019178,2]
[315194064,1708921840169,-507.460159,0.00019178,2]
[315194065,1708921840179,-350.38082204,0.00019178,2]
[315194066,1708921840189,-573.42,0.00019178,2]
[315194067,1708921840198,-1397.72,0.00019178,2]
[315194068,1708921840211,-500.0,0.00019178,2]
[315194069,1708921840220,-310.21411182,0.00019178,2]
[315194070,1708921840230,-503.89,0.00019178,2]
[315194071,1708921840240,-504.63239658,0.00019178,2]
[315194072,1708921840249,-757.19,0.00019178,2]
[315194073,1708921840258,-504.21335184,0.00019178,2]
[315194074,1708921840267,-500.0,0.00019178,2]
[315194075,1708921840276,-500.0,0.00019178,2]
[315194076,1708921840285,-500.0,0.00019178,2]
[315194077,1708921840295,-500.0,0.00019178,2]
[315194078,1708921840304,-500.0,0.00019178,2]
[315194079,1708921840314,-500.0,0.00019178,2]
[315194080,1708921840324,-1005.8616059,0.00019178,2]
[315194081,1708921840332,-500.89874379,0.00019178,2]
[315194082,1708921840341,-500.0,0.00019178,2]
[315194083,1708921840351,-500.0,0.00019178,2]
[315194084,1708921840360,-500.79176669,0.00019178,2]
[315194085,1708921840369,-500.0,0.00019178,2]
[315194086,1708921840378,-500.0,0.00019178,2]
[315194087,1708921840387,-500.0,0.00019178,2]
[315194088,1708921840396,-500.94944783,0.00019178,2]
[315194089,1708921840406,-2106.05,0.00019178,2]
[315194090,1708921840415,-500.0,0.00019178,2]
[315194091,1708921840425,-500.0,0.00019178,2]
[315194092,1708921840434,-500.0,0.00019178,2]
[315194093,1708921840443,-500.0,0.00019178,2]
[315194094,1708921840452,-1635.29,0.00019178,2]
[315194095,1708921840463,-500.0,0.00019178,2]
[315194096,1708921840473,-500.0,0.00019178,2]
[315194097,1708921840482,-500.0,0.00019178,2]
[315194098,1708921840491,-500.0,0.00019178,2]
[315194099,1708921840501,-500.0,0.00019178,2]
[315194100,1708921840510,-500.0,0.00019178,2]
[315194101,1708921840519,-500.0,0.00019178,2]
[315194102,1708921840529,-500.0,0.00019178,2]
[315194103,1708921840538,-500.0,0.00019178,2]
[315194104,1708921840547,-500.0,0.00019178,2]
[315194105,1708921840557,-500.87195388,0.00019178,2]
[315194106,1708921840566,-500.0,0.00019178,2]
[315194107,1708921840575,-500.0,0.00019178,2]
[315194108,1708921840584,-500.0,0.00019178,2]
[315194109,1708921840593,-500.0,0.00019178,2]
[315194110,1708921840602,-500.0,0.00019178,2]
[315194111,1708921840612,-755.51,0.00019178,2]
[315194112,1708921840620,-500.0,0.00019178,2]
[315194113,1708921840630,-500.0,0.00019178,2]
[315194114,1708921840639,-500.0,0.00019178,2]
[315194115,1708921840648,-952.83,0.00019178,2]
[315194116,1708921840658,-500.0,0.00019178,2]
[315194117,1708921840667,-500.0,0.00019178,2]
[315194118,1708921840676,-500.0,0.00019178,2]
[315194119,1708921840686,-500.0,0.00019178,2]
[315194120,1708921840695,-500.0,0.00019178,2]
[315194121,1708921840704,-500.0,0.00019178,2]
[315194122,1708921840714,-500.85128667,0.00019178,2]
[315194123,1708921840723,-500.0,0.00019178,2]
[315194124,1708921840733,-709.09,0.00019178,2]
[315194125,1708921840743,-500.5519328,0.00019178,2]
[315194126,1708921840752,-500.0,0.00019178,2]
[315194127,1708921840761,-500.0,0.00019178,2]
[315194128,1708921840771,-500.0,0.00019178,2]
[315194129,1708921840780,-500.0,0.00019178,2]
[315194130,1708921840789,-500.0,0.00019178,2]
[315194131,1708921840798,-500.0,0.00019178,2]
[315194132,1708921840808,-500.0,0.00019178,2]
[315194133,1708921840817,-500.0,0.00019178,2]
[315194134,1708921840826,-500.0,0.00019178,2]
[315194135,1708921840836,-500.0,0.00019178,2]
[315194136,1708921840845,-2741.85,0.00019178,2]
[315194137,1708921840854,-499.53437694,0.00019178,2]
[315194138,1708921840863,-502.09355324,0.00019178,2]
[315194139,1708921840873,-500.0,0.00019178,2]
[315194140,1708921840882,-500.0,0.00019178,2]
[315194141,1708921840892,-500.0,0.00019178,2]
[315194142,1708921840901,-10116.51,0.00019178,2]
[315194143,1708921840911,-500.0,0.00019178,2]
[315194144,1708921840921,-500.0,0.00019178,2]
[315194145,1708921840930,-500.0,0.00019178,2]
[315194146,1708921840944,-1000.0,0.00019178,2]
[315194147,1708921840953,-2596.15,0.00019178,2]
[315194148,1708921840962,-500.0,0.00019178,2]
[315194149,1708921840972,-261.3220254,0.00019178,2]
[315194150,1708921840982,-1928.49,0.00019178,2]
[315194151,1708921840991,-4001.76,0.00019178,2]
[315194152,1708921841001,-500.0,0.00019178,2]
[315194153,1708921841011,-500.0,0.00019178,2]
[315194154,1708921841020,-500.0,0.00019178,2]
[315194155,1708921841029,-500.0,0.00019178,2]
[315194156,1708921841039,-500.0,0.00019178,2]
[315194157,1708921841048,-500.0,0.00019178,2]
[315194158,1708921841057,-500.0,0.00019178,2]
[315194159,1708921841065,-500.0,0.00019178,2]
[315194160,1708921841075,-500.0,0.00019178,2]
[315194161,1708921841084,-500.43159131,0.00019178,2]
[315194162,1708921841093,-500.0,0.00019178,2]
[315194163,1708921841103,-501.671664,0.00019178,2]
[315194164,1708921841112,-500.0,0.00019178,2]
[315194165,1708921841121,-500.0,0.00019178,2]
[315194166,1708921841131,-503.01168124,0.00019178,2]
[315194167,1708921841140,-500.0,0.00019178,2]
[315194168,1708921841149,-501.16229543,0.00019178,2]
[315194169,1708921841158,-2052.23,0.00019178,2]
[315194170,1708921841168,-573.72782983,0.00019178,2]
[315194171,1708921841177,-266.2521577,0.00019178,2]
[315194172,1708921841187,-500.0,0.00019178,2]
[315194173,1708921841196,-2190.26,0.00019178,2]
[315194174,1708921841206,-581.13636128,0.00019178,2]
[315194175,1708921841215,-500.0,0.00019178,2]
[315194176,1708921841225,-500.0,0.00019178,2]
[315194177,1708921841234,-500.0,0.00019178,2]
[315194178,1708921841243,-500.0,0.00019178,2]
[315194179,1708921841252,-500.0,0.00019178,2]
[315194180,1708921841261,-500.0,0.00019178,2]
[315194181,1708921841270,-500.0,0.00019178,2]
[315194182,1708921841280,-500.0,0.00019178,2]
[315194183,1708921841289,-500.0,0.00019178,2]
[315194184,1708921841298,-500.20438763,0.00019178,2]
[315194185,1708921841307,-22262.59,0.00019178,2]
[315194186,1708921841316,-500.0,0.00019178,2]
[315194187,1708921841325,-500.0,0.00019178,2]
[315194188,1708921841334,-500.0,0.00019178,2]
[315194189,1708921841343,-500.0,0.00019178,2]
[315194190,1708921841352,-500.24182891,0.00019178,2]
[315194191,1708921841361,-500.0,0.00019178,2]
[315194192,1708921841370,-500.0,0.00019178,2]
[315194193,1708921841379,-500.0,0.00019178,2]
[315194194,1708921841389,-500.43962735,0.00019178,2]
[315194195,1708921841398,-616.85,0.00019178,2]
[315194196,1708921841408,-500.0,0.00019178,2]
[315194197,1708921841417,-518.49613271,0.00019178,2]
[315194198,1708921841426,-500.0,0.00019178,2]
[315194199,1708921841436,-500.0,0.00019178,2]
[315194200,1708921841445,-1335.21,0.00019178,2]
[315194201,1708921841455,-592.7,0.00019178,2]
[315194202,1708921841464,-592.7,0.00019178,2]
[315194203,1708921841474,-592.7,0.00019178,2]
[315194204,1708921841484,-500.0,0.00019178,2]
[315194206,1708921841493,-500.0,0.00019178,2]
[315194207,1708921841502,-500.0,0.00019178,2]
[315194208,1708921841511,-500.0,0.00019178,2]
[315194209,1708921841520,-268.97832651,0.00019178,2]
[315194210,1708921841530,-500.0,0.00019178,2]
[315194211,1708921841539,-500.0,0.00019178,2]
[315194213,1708921841548,-625.93045909,0.00019178,2]
[315194214,1708921841558,-500.0,0.00019178,2]
[315194216,1708921841567,-500.0,0.00019178,2]
[315194218,1708921841577,-1704.52,0.00019178,2]
[315194219,1708921841586,-500.0,0.00019178,2]
[315194220,1708921841596,-500.0,0.00019178,2]
[315194221,1708921841606,-500.0,0.00019178,2]
[315194222,1708921841615,-500.0,0.00019178,2]
[315194223,1708921841624,-500.0,0.00019178,2]
[315194224,1708921841634,-500.0,0.00019178,2]
[315194225,1708921841643,-500.0,0.00019178,2]
[315194226,1708921841652,-501.16512852,0.00019178,2]
[315194227,1708921841661,-2224.22,0.00019178,2]
[315194228,1708921841670,-8230.75,0.00019178,2]
[315194229,1708921841680,-500.0,0.00019178,2]
[315194230,1708921841689,-500.0,0.00019178,2]
[315194231,1708921841698,-500.0,0.00019178,2]
[315194232,1708921841708,-3496.35,0.00019178,2]
[315194233,1708921841717,-500.0,0.00019178,2]
[315194234,1708921841726,-500.0,0.00019178,2]
[315194235,1708921841735,-500.0,0.00019178,2]
[315194236,1708921841744,-500.0,0.00019178,2]
[315194237,1708921841754,-500.0,0.00019178,2]
[315194238,1708921841763,-625.42418901,0.00019178,2]
[315194239,1708921841772,-483.72738854,0.00019178,2]
[315194240,1708921841781,-3074.48,0.00019178,2]
[315194241,1708921841790,-500.0,0.00019178,2]
[315194242,1708921841799,-500.0,0.00019178,2]
[315194243,1708921841808,-500.0,0.00019178,2]
[315194244,1708921841817,-1541.99,0.00019178,2]
[315194245,1708921841826,-805.16,0.00019178,2]
[315194246,1708921841835,-500.0,0.00019178,2]
[315194247,1708921841844,-22902.69,0.00019178,2]
[315194248,1708921841853,-500.0,0.00019178,2]
[315194249,1708921841862,-500.0,0.00019178,2]
[315194250,1708921841871,-1680.27,0.00019178,2]
[315194251,1708921841881,-4348.38,0.00019178,2]
[315194252,1708921841891,-2405.23,0.00019178,2]
[315194253,1708921841900,-3161.99,0.00019178,2]
[315194254,1708921841909,-500.0,0.00019178,2]
[315194255,1708921841918,-500.0,0.00019178,2]
[315194256,1708921841927,-1654.62,0.00019178,2]
[315194257,1708921841937,-500.0,0.00019178,2]
[315194258,1708921841948,-500.0,0.00019178,2]
[315194259,1708921841957,-500.0,0.00019178,2]
[315194260,1708921841967,-500.0,0.00019178,2]
[315194261,1708921841977,-500.52146874,0.00019178,2]
[315194262,1708921841986,-500.0,0.00019178,2]
[315194263,1708921841995,-500.0,0.00019178,2]
[315194264,1708921842005,-500.0,0.00019178,2]
[315194265,1708921842015,-2174.93,0.00019178,2]
[315194266,1708921842026,-500.0,0.00019178,2]
[315194267,1708921842035,-1270.54,0.00019178,2]
[315194268,1708921842045,-500.0,0.00019178,2]
[315194269,1708921842054,-601.83460681,0.00019178,2]
[315194270,1708921842063,-1590.92,0.00019178,2]
[315194271,1708921842072,-740.93,0.00019178,2]
[315194272,1708921842081,-500.0,0.00019178,2]
[315194273,1708921842091,-500.0,0.00019178,2]
[315194274,1708921842101,-500.0,0.00019178,2]
[315194275,1708921842111,-501.66893489,0.00019178,2]
[315194276,1708921842120,-500.0,0.00019178,2]
[315194277,1708921842130,-500.0,0.00019178,2]
[315194278,1708921842139,-400.24472666,0.00019178,2]
[315194279,1708921842149,-165.961452,0.00019178,2]
[315194280,1708921842158,-166.666666,0.00019178,2]
[315194281,1708921842167,-152.51778481,0.00019345,2]
[315194282,1708921842177,-153.0,0.000194,2]
[315194283,1708921842186,-592.7,0.0001945,2]
[315194284,1708921842195,-500.0,0.0001945,2]
[315194285,1708921842204,-592.7,0.00019451,2]
[315194286,1708921842214,-592.7,0.00019451,2]
[315194287,1708921842225,-592.7,0.00019451,2]
[315194288,1708921842234,-500.0,0.00019451,2]
[315194289,1708921842243,-559.15393256,0.00019451,2]
[315194290,1708921842252,-500.0,0.00019452,2]
[315194291,1708921842262,-500.0,0.00019452,2]
[315194292,1708921842271,-500.0,0.00019452,2]
[315194293,1708921842376,-500.0,0.00019452,2]
[315194294,1708921842388,-500.0,0.00019452,2]
[315194295,1708921842398,-505.19240896,0.00019452,2]
[315194296,1708921842407,-573.18,0.00019452,2]
[315194297,1708921842416,-500.0,0.00019452,2]
[315194298,1708921842425,-500.0,0.00019452,2]
[315194299,1708921842435,-218.21102061,0.00019452,2]
[315194300,1708921842445,-502.78919013,0.00019452,2]
[315194301,1708921842454,-503.35756395,0.00019452,2]
[315194302,1708921842464,-500.0,0.00019452,2]
[315194303,1708921842475,-410.68175763,0.00019452,2]
[315194304,1708921842485,-500.0,0.00019452,2]
[315194305,1708921842495,-573.42,0.00019452,2]
[315194306,1708921842506,-1397.72,0.00019452,2]
[315194307,1708921842516,-500.0,0.00019452,2]
[315194308,1708921842525,-503.89,0.00019452,2]
[315194309,1708921842535,-757.19,0.00019452,2]
[315194310,1708921842545,-502.17659617,0.00019452,2]
[315194311,1708921842554,-500.0,0.00019452,2]
[315194312,1708921842563,-500.0,0.00019452,2]
[315194313,1708921842572,-500.0,0.00019452,2]
[315194314,1708921842581,-500.0,0.00019452,2]
[315194315,1708921842591,-500.0,0.00019452,2]
[315194316,1708921842600,-500.0,0.00019452,2]
[315194317,1708921842610,-500.0,0.00019452,2]
[315194318,1708921842619,-2106.05,0.00019452,2]
[315194319,1708921842629,-500.0,0.00019452,2]
[315194320,1708921842638,-500.0,0.00019452,2]
[315194321,1708921842647,-503.94397976,0.00019452,2]
[315194322,1708921842657,-502.13232332,0.00019452,2]
[315194323,1708921842666,-1635.29,0.00019452,2]
[315194324,1708921842675,-500.0,0.00019452,2]
[315194325,1708921842685,-500.0,0.00019452,2]
[315194326,1708921842694,-500.0,0.00019452,2]
[315194327,1708921842703,-500.0,0.00019452,2]
[315194328,1708921842713,-500.0,0.00019452,2]
[315194329,1708921842722,-500.0,0.00019452,2]
[315194330,1708921842732,-501.11759681,0.00019452,2]
[315194331,1708921842740,-500.0,0.00019452,2]
[315194332,1708921842749,-500.0,0.00019452,2]
[315194333,1708921842760,-500.0,0.00019452,2]
[315194334,1708921842771,-565.91942738,0.00019452,2]
[315194335,1708921842781,-755.51,0.00019452,2]
[315194336,1708921842790,-500.0,0.00019452,2]
[315194337,1708921842799,-500.0,0.00019452,2]
[315194338,1708921842809,-952.83,0.00019452,2]
[315194339,1708921842818,-500.0,0.00019452,2]
[315194340,1708921842828,-500.0,0.00019452,2]
[315194341,1708921842838,-500.0,0.00019452,2]
[315194342,1708921842847,-500.0,0.00019452,2]
[315194343,1708921842857,-502.25263144,0.00019452,2]
[315194344,1708921842866,-500.0,0.00019452,2]
[315194345,1708921842876,-709.09,0.00019452,2]
[315194346,1708921842886,-500.0,0.00019452,2]
[315194347,1708921842897,-500.0,0.00019452,2]
[315194348,1708921842906,-371.5006517,0.00019452,2]
[315194349,1708921842915,-500.0,0.00019452,2]
[315194350,1708921842923,-500.0,0.00019452,2]
[315194351,1708921842934,-500.0,0.00019452,2]
[315194352,1708921842944,-500.0,0.00019452,2]
[315194353,1708921842954,-500.0,0.00019452,2]
[315194354,1708921842963,-500.0,0.00019452,2]
[315194355,1708921842972,-500.0,0.00019452,2]
[315194356,1708921842981,-2741.85,0.00019452,2]
[315194357,1708921842990,-500.0,0.00019452,2]
[315194358,1708921843000,-311.1793471,0.00019452,2]
[315194359,1708921843010,-10116.51,0.00019452,2]
[315194360,1708921843019,-502.22509866,0.00019452,2]
[315194361,1708921843029,-500.0,0.00019452,2]
[315194362,1708921843038,-503.73759434,0.00019452,2]
[315194363,1708921843047,-1000.0,0.00019452,2]
[315194364,1708921843057,-2596.15,0.00019452,2]
[315194365,1708921843066,-500.0,0.00019452,2]
[315194366,1708921843075,-1928.49,0.00019452,2]
[315194367,1708921843084,-500.0,0.00019452,2]
[315194368,1708921843093,-4001.76,0.00019452,2]
[315194369,1708921843102,-500.0,0.00019452,2]
[315194370,1708921843111,-249.10033961,0.00019452,2]
[315194371,1708921843120,-435.78314864,0.00019452,2]
[315194372,1708921843129,-500.0,0.00019452,2]
[315194373,1708921843138,-487.01483259,0.00019452,2]
[315194374,1708921843147,-500.0,0.00019452,2]
[315194375,1708921843156,-500.0,0.00019452,2]
[315194376,1708921843166,-500.0,0.00019452,2]
[315194377,1708921843175,-502.1574268,0.00019452,2]
[315194378,1708921843185,-500.0,0.00019452,2]
[315194379,1708921843194,-179.15482802,0.00019452,2]
[315194380,1708921843203,-500.0,0.00019452,2]
[315194381,1708921843213,-2052.23,0.00019452,2]
[315194382,1708921843223,-500.0,0.00019452,2]
[315194383,1708921843231,-2190.26,0.00019452,2]
[315194384,1708921843240,-500.0,0.00019452,2]
[315194385,1708921843249,-500.0,0.00019452,2]
[315194386,1708921843258,-501.91998645,0.00019452,2]
[315194387,1708921843268,-500.0,0.00019452,2]
[315194388,1708921843277,-500.0,0.00019452,2]
[315194389,1708921843286,-500.0,0.00019452,2]
[315194390,1708921843295,-501.12560342,0.00019452,2]
[315194391,1708921843304,-500.0,0.00019452,2]
[315194392,1708921843314,-500.0,0.00019452,2]
[315194393,1708921843323,-22262.59,0.00019452,2]
[315194394,1708921843332,-500.0,0.00019452,2]
[315194395,1708921843341,-500.0,0.00019452,2]
[315194396,1708921843350,-500.0,0.00019452,2]
[315194397,1708921843359,-181.78139864,0.00019452,2]
[315194398,1708921843369,-513.93926207,0.00019452,2]
[315194399,1708921843379,-500.0,0.00019452,2]
[315194400,1708921843388,-500.0,0.00019452,2]
[315194401,1708921843397,-616.85,0.00019452,2]
[315194402,1708921843406,-500.0,0.00019452,2]
[315194403,1708921843416,-500.0,0.00019452,2]
[315194404,1708921843425,-500.0,0.00019452,2]
[315194405,1708921843434,-1335.21,0.00019452,2]
[315194406,1708921843444,-500.0,0.00019452,2]
[315194407,1708921843453,-500.0,0.00019452,2]
[315194408,1708921843463,-500.71576396,0.00019452,2]
[315194409,1708921843472,-500.0,0.00019452,2]
[315194410,1708921843482,-500.0,0.00019452,2]
[315194411,1708921843490,-500.0,0.00019452,2]
[315194412,1708921843499,-509.9265336,0.00019452,2]
[315194413,1708921843509,-233.39371424,0.00019452,2]
[315194414,1708921843518,-1704.52,0.00019452,2]
[315194415,1708921843527,-500.0,0.00019452,2]
[315194416,1708921843536,-500.0,0.00019452,2]
[315194417,1708921843545,-500.0,0.00019452,2]
[315194418,1708921843554,-500.0,0.00019452,2]
[315194419,1708921843564,-500.0,0.00019452,2]
[315194420,1708921843573,-2224.22,0.00019452,2]
[315194421,1708921843582,-8230.75,0.00019452,2]
[315194422,1708921843592,-500.0,0.00019452,2]
[315194423,1708921843601,-500.0,0.00019452,2]
[315194424,1708921843610,-500.0,0.00019452,2]
[315194425,1708921843620,-3496.35,0.00019452,2]
[315194426,1708921843629,-405.80118565,0.00019452,2]
[315194427,1708921843638,-500.0,0.00019452,2]
[315194428,1708921843647,-501.03015626,0.00019452,2]
[315194429,1708921843657,-500.0,0.00019452,2]
[315194430,1708921843666,-500.0,0.00019452,2]
[315194431,1708921843675,-3074.48,0.00019452,2]
[315194432,1708921843685,-500.77094281,0.00019452,2]
[315194433,1708921843694,-500.0,0.00019452,2]
[315194434,1708921843703,-500.0,0.00019452,2]